[Event "German-ch Blitz Women 2022"]
[Site "Magdeburg"]
[Date "2022.08.13"]
[Round "6.6"]
[White "Grabowski, Petra"]
[Black "Schuster, Rebekka"]
[Result "1-0"]
[ECO "A84"]
[WhiteElo "1643"]
[BlackElo "1815"]
[Annotator "NA RC COMBH"]
[PlyCount "29"]
[EventDate "2022.08.10"]
[EventType "tourn"]
[EventCountry "GER"]
[SourceTitle "playchess.com"]
[Source "ChessBase"]
[SourceQuality "1"]
[TimeControl "180+2"]

1. d4 e6 2. c4 f5 3. Nc3 Nf6 4. h4 Be7 5. h5 d6 6. h6 gxh6 7. Bxh6 Ng4 8. Bd2 Nc6 9. d5 Nce5 10. e3 Ng6 11. Be2 N4e5 12. Bh5 Bd7 13. Qe2 O-O 14. Nf3 Be8 15. dxe6 1-0

[Event "German-ch Blitz Women 2022"]
[Site "Magdeburg"]
[Date "2022.08.13"]
[Round "6.7"]
[White "Braun, Kristin"]
[Black "Fock, Sana"]
[Result "1-0"]
[ECO "B90"]
[WhiteElo "1897"]
[BlackElo "1807"]
[Annotator "NA RC COMBH"]
[PlyCount "81"]
[EventDate "2022.08.10"]
[EventType "tourn"]
[EventCountry "GER"]
[SourceTitle "playchess.com"]
[Source "ChessBase"]
[SourceQuality "1"]
[TimeControl "180+2"]

1. e4 {[%emt 0:00:00]} c5 {[%emt 0:00:01]} 2. Nf3 {[%emt 0:00:01]} d6 {[%emt 0:00:01]} 3. d4 {[%emt 0:00:00]} cxd4 4. Nxd4 {[%emt 0:00:01]} Nf6 5. Nc3 a6 6. Qf3 Nbd7 {[%emt 0:00:23]} 7. Nf5 {[%emt 0:00:18]} Ne5 {[%emt 0:00:13]} 8. Qe2 {[%emt 0:00:14]} e6 {[%emt 0:00:15]} 9. f4 {[%emt 0:00:13]} exf5 {[%emt 0:00:18]} 10. fxe5 {[%emt 0:00:00]} dxe5 {[%emt 0:00:11]} 11. exf5 {[%emt 0:00:01]} Bxf5 {[%emt 0:00:26]} 12. Qxe5+ {[%emt 0:00:01]} Be6 {[%emt 0:00:01]} 13. Bg5 {[%emt 0:00:07]} Be7 {[%emt 0:00:11]} 14. Bd3 {[%emt 0:00:09]} h6 {[%emt 0:00:23]} 15. Bf4 {[%emt 0:00:44]} O-O {[%emt 0:00:09]} 16. O-O-O {[%emt 0:00:03]} Ng4 {[%emt 0:00:07]} 17. Qe4 {[%emt 0:00:18]} Nf6 {[%emt 0:00:15]} 18. Qxb7 {[%emt 0:00:09]} Qc8 {[%emt 0:00:03]} 19. Qxc8 {[%emt 0:00:04]} Rfxc8 {[%emt 0:00:01]} 20. Rhe1 {[%emt 0:00:07]} Bb4 {[%emt 0:00:02]} 21. Be5 {[%emt 0:00:06]} a5 {[%emt 0:00:11]} 22. a3 {[%emt 0:00:02]} Be7 {[%emt 0:00:06]} 23. Nb5 {[%emt 0:00:10]} Nd5 {[%emt 0:00:10]} 24. Nd6 {[%emt 0:00:08]} Bg5+ {[%emt 0:00:03]} 25. Kb1 {[%emt 0:00:01]} Rd8 {[%emt 0:00:07]} 26. Nc4 {[%emt 0:00:05]} Nb4 {[%emt 0:00:07]} 27. axb4 {[%emt 0:00:04]} axb4 {[%emt 0:00:01]} 28. Bc7 {[%emt 0:00:07]} Rd7 {[%emt 0:00:04]} 29. Bd6 {[%emt 0:00:15]} Rda7 {[%emt 0:00:02]} 30. c3 {[%emt 0:00:08]} Bxc4 {[%emt 0:00:05]} 31. Bxc4 {[%emt 0:00:02]} b3 {[%emt 0:00:02]} 32. Bxb3 Ra1+ {[%emt 0:00:01]} 33. Kc2 {[%emt 0:00:01]} Rxd1 {[%emt 0:00:03]} 34. Rxd1 Rd8 {[%emt 0:00:02]} 35. Bg3 {[%emt 0:00:03]} Re8 {[%emt 0:00:02]} 36. Rd7 {[%emt 0:00:03]} Re2+ {[%emt 0:00:01]} 37. Kb1 {[%emt 0:00:01]} Rxg2 {[%emt 0:00:02]} 38. Rxf7 {[%emt 0:00:02]} Kh8 {[%emt 0:00:01]} 39. Bc2 {[%emt 0:00:03]} Rg1+ {[%emt 0:00:01]} 40. Ka2 {[%emt 0:00:01]} Rg2 {[%emt 0:00:03]} 41. Rf8# {[%emt 0:00:01]} 1-0

[Event "German-ch Blitz Women 2022"]
[Site "Magdeburg"]
[Date "2022.08.13"]
[Round "6.8"]
[White "Skibbe, Diana"]
[Black "Heil, Marina"]
[Result "0-1"]
[ECO "B07"]
[WhiteElo "1943"]
[BlackElo "1926"]
[Annotator "TA"]
[PlyCount "86"]
[EventDate "2022.08.10"]
[EventType "tourn"]
[EventCountry "GER"]
[SourceTitle "playchess.com"]
[Source "ChessBase"]
[SourceQuality "1"]
[TimeControl "180+2"]

{[%evp 9,86,22,37,6,12,15,28,-14,7,2,50,-98,43,-21,-19,-360,-353,-356,-365,-370,-372,-366,-389,-364,-350,-404,-387,-471,-241,-447,-445,-457,-461,-453,-449,-569,-550,-570,-571,-841,-862,-854,-850,-827,-556,-548,-562,-650,-558,-660,-685,-686,-672,-686,-661,-1485,-1469,-2531,-1505,-1616,-1591,-1363,-1033,-920,-247,-1097,-1090,-1067,-1004,-2544,-2487,-2119,-2098,-29985,-29982,-29993,-29994,-29994,-29995]} 1. e4 {[%emt 0:00:01]} d6 {[%emt 0:00:01]} 2. d4 {[%emt 0:00:01]} Nf6 {[%emt 0:00:02]} 3. Nc3 {[%emt 0:00:01]} Nbd7 {[%emt 0:00:01]} 4. Nf3 {[%emt 0:00:02]} e5 {[%emt 0:00:01]} 5. Bd3 {[%emt 0:00:05]} c6 {[%emt 0:00:03]} 6. Bd2 {[%emt 0:00:05] C41: Philidor Defence.} Be7 {[%emt 0:00:02] [#]} 7. h3 $146 {[%emt 0:00:05]} ({Predecessor:} 7. Qe2 a5 8. a4 O-O 9. O-O Re8 10. Rfe1 Qb6 11. dxe5 dxe5 12. Bc4 h6 13. b3 {1-0 (57) Monteiro,D (1590)-Horisch,J (1824) Florianopolis 2020}) 7... h6 {[%emt 0:00:02]} 8. Qe2 {[%emt 0:00:03] White has an edge.} a5 {[%emt 0:00:03]} 9. O-O {[%emt 0:00:03]} Qc7 {[%emt 0:00:04]} (9... exd4 $11 10. Nxd4 O-O) 10. Nh4 {[%emt 0:00:05]} (10. Nd1 $14 {keeps the upper hand.}) 10... g6 {[%emt 0:00:01]} ({Better is} 10... exd4 $17 11. Nb1 Ne5) 11. d5 {[%emt 0:00:08]} (11. Nf3 $14) 11... Nxd5 $11 {[%emt 0:00:34]} 12. Nxg6 $2 {[%emt 0:00:23][%mdl 8192] Loses the game.} (12. exd5 $11 {and White stays safe.} Bxh4 13. f4) 12... Nxc3 $19 {[%emt 0:00:04]} 13. Bxc3 {[%emt 0:00:05]} fxg6 {[%emt 0:00:02]} 14. f4 {[%emt 0:00:02]} O-O {[%emt 0:00:23]} 15. Qg4 {[%emt 0:00:06]} Kh7 {[%emt 0:00:05]} 16. f5 {[%emt 0:00:06]} g5 {[%emt 0:00:08]} 17. Qh5 {[%emt 0:00:06] [#] Threatens to win with Qg6+.} Rg8 {[%emt 0:00:06] Prevents Qg6+.} ({Weaker is} 17... Rf6 18. Bd2 $17) 18. Bc4 {[%emt 0:00:16]} Rg7 {[%emt 0:00:08]} (18... d5 $142 19. Bd3 Nf6) 19. Qe2 $2 {[%emt 0:00:04]} (19. Bf7 {was forced.}) 19... Nf6 {[%emt 0:00:05]} 20. g4 {[%emt 0:00:04]} b5 {[%emt 0:00:07][%cal Bb7b5,Bb5c4][%mdl 32]} 21. Bd3 {[%emt 0:00:02]} Qb6+ {[%emt 0:00:08]} 22. Kh1 {[%emt 0:00:04]} Bb7 {[%emt 0:00:07][%cal Oh6h5]} 23. Bd2 {[%emt 0:00:04]} c5 {[%emt 0:00:06] ...c4 is the strong threat.} 24. c4 {[%emt 0:00:11]} bxc4 {[%emt 0:00:06]} 25. Bc2 {[%emt 0:00:07]} Qxb2 {[%emt 0:00:06]} 26. Rfc1 {[%emt 0:00:12]} Qb6 {[%emt 0:00:20]} 27. Rab1 {[%emt 0:00:04]} Qc6 {[%emt 0:00:00][%cal Rf6e4]} 28. Re1 {[%emt 0:00:11]} a4 {[%emt 0:00:06]} 29. Kh2 {[%emt 0:00:04]} d5 {[%emt 0:00:06]} 30. exd5 {[%emt 0:00:06]} Qxd5 {[%emt 0:00:01]} 31. Bc3 {[%emt 0:00:05]} Bd6 {[%emt 0:00:10]} 32. Be4 {[%emt 0:00:14]} Nxe4 {[%emt 0:00:06]} 33. f6 {[%emt 0:00:02]} Nxf6 {[%emt 0:00:05]} 34. Qc2+ {[%emt 0:00:01]} e4+ {[%emt 0:00:03]} 35. Kg1 {[%emt 0:00:03]} Kh8 {[%emt 0:00:00]} 36. Bxf6 {[%emt 0:00:02]} e3 $2 {[%emt 0:00:00]} 37. Rxb7 $2 {[%emt 0:00:03]} (37. Bxg7+ Kxg7 38. Qb2+ Kg6 39. Qxb7) 37... Qxb7 {[%emt 0:00:00]} 38. Rxe3 {[%emt 0:00:03] [#]} Bf4 $1 {[%emt 0:00:00]} 39. Re7 {[%emt 0:00:05]} (39. Re6 Rf8) 39... Qxe7 {[%emt 0:00:00]} 40. Bxe7 {[%emt 0:00:01]} Rxe7 {[%emt 0:00:00]} 41. Qxc4 {[%emt 0:00:02]} Rd8 {[%emt 0:00:00] Black mates.} 42. Qxc5 {[%emt 0:00:03]} Be3+ {[%emt 0:00:00]} 43. Qxe3 {[%emt 0:00:01]} Rxe3 {[%emt 0:00:00] Weighted Error Value: White=0.84/Black=0.40} 0-1

[Event "German-ch Blitz Women 2022"]
[Site "Magdeburg"]
[Date "2022.08.13"]
[Round "6.9"]
[White "Rath, Alina"]
[Black "Leveikina, Jevgenija"]
[Result "1/2-1/2"]
[ECO "A11"]
[WhiteElo "2062"]
[BlackElo "2061"]
[Annotator "TA"]
[PlyCount "79"]
[EventDate "2022.08.10"]
[EventType "tourn"]
[EventCountry "GER"]
[SourceTitle "playchess.com"]
[Source "ChessBase"]
[SourceQuality "1"]
[TimeControl "180+2"]

{[%evp 15,79,0,-1,-14,-6,-13,-10,-9,8,0,13,12,66,71,63,70,117,138,123,138,127,62,90,89,131,120,168,175,162,152,163,37,72,21,44,-17,-8,-137,-13,-65,81,86,96,85,96,-19,222,229,449,-378,-320,-2538,-2411,-29989,-29990,-29994,-29995,-29996,-29993,-29997,-29988,-29990,0,-29997,0,-29990]} 1. c4 {[%emt 0:00:01]} c6 {[%emt 0:00:00]} 2. g3 {[%emt 0:00:01]} d5 {[%emt 0:00:00]} 3. Bg2 {[%emt 0:00:01]} Nf6 {[%emt 0:00:01]} 4. d3 {[%emt 0:00:04]} Bf5 {[%emt 0:00:01]} 5. b3 {[%emt 0:00:01]} e6 {[%emt 0:00:01]} 6. Bb2 {[%emt 0:00:01]} Nbd7 {[%emt 0:00:01]} 7. Nf3 {[%emt 0:00:00]} Be7 {[%emt 0:00:00]} 8. O-O {[%emt 0:00:02]} h6 {[%emt 0:00:01]} 9. e3 {[%emt 0:00:01] A12: English Opening: 1...c6 with b3 by White.} O-O {[%emt 0:00:02]} 10. Qe2 {[%emt 0:00:02] [#]} Nc5 $146 {[%emt 0:00:02]} ({Predecessor:} 10... a5 11. Nc3 Bh7 12. Rfd1 Qc7 13. e4 dxe4 14. dxe4 e5 15. Nh4 Rfe8 16. Nf5 Bxf5 17. exf5 {1-0 (48) Albuquerque,W (2209)-Shuvalov,E (2182) Chess.com INT 2020}) 11. Rd1 {[%emt 0:00:06]} a5 {[%emt 0:00:04]} 12. Ne5 {[%emt 0:00:09]} Qc7 {[%emt 0:00:07]} 13. d4 {[%emt 0:00:01]} Nce4 {[%emt 0:00:06]} (13... Nfd7 $11) 14. f3 $14 {[%emt 0:00:10][%cal Bf2f3,Bf3e4][%mdl 32]} Nd6 {[%emt 0:00:02]} 15. Nc3 $36 {[%emt 0:00:04][%mdl 2048] White fights for an advantage.} Nd7 {[%emt 0:00:11]} (15... Bh7 $14) 16. e4 $16 {[%emt 0:00:09]} dxe4 {[%emt 0:00:10]} 17. fxe4 {[%emt 0:00:01] Hoping for Nxd7.} Bh7 {[%emt 0:00:03]} 18. Nf3 {[%emt 0:00:02] White is more active.} (18. Nxd7 $16 Qxd7 19. d5) 18... Rfd8 {[%emt 0:00:19]} 19. Kh1 {[%emt 0:00:01]} Nf8 {[%emt 0:00:04]} 20. Rac1 {[%emt 0:00:09]} Ne8 {[%emt 0:00:24]} (20... f6 $16 21. c5 Nf7) 21. d5 $18 {[%emt 0:00:09]} exd5 {[%emt 0:00:06]} 22. cxd5 {[%emt 0:00:03]} Bb4 {[%emt 0:00:12]} 23. dxc6 {[%emt 0:00:05]} (23. e5 $18) 23... bxc6 {[%emt 0:00:01]} 24. Na4 {[%emt 0:00:15]} (24. Nd4 $16 {[%cal Oc3d5] Black must now prevent Nd5!} Bc5 25. Na4 Bxd4 26. Rxd4 (26. Bxd4 Ne6 $14)) 24... Ne6 {[%emt 0:00:15]} 25. Rxd8 {[%emt 0:00:18]} (25. Nd4 $14) 25... Rxd8 $11 {[%emt 0:00:01]} 26. Qc4 {[%emt 0:00:02]} (26. Qe3 $11 {keeps the balance.}) 26... c5 {[%emt 0:00:23]} (26... Nd6 $17 27. Qxc6 Qxc6 28. Rxc6 Nxe4) 27. Qe2 {[%emt 0:00:15]} ({Better is} 27. a3 $11 Bd2 28. Nxd2 Rxd2 29. Bc3 Rxg2 30. Kxg2) 27... Nd6 {[%emt 0:00:14]} (27... Qb7 $15 {stays ahead.}) 28. a3 $16 {[%emt 0:00:12]} Nxe4 {[%emt 0:00:12]} 29. axb4 {[%emt 0:00:07]} axb4 {[%emt 0:00:01][%cal Oc7g3]} 30. Kg1 {[%emt 0:00:17]} (30. Qe1 $16) 30... Qa7 $2 {[%emt 0:00:01]} (30... c4 $1 $11 {and Black is okay.} 31. Re1 (31. Qxc4 $2 Qa7+ 32. Nc5 N4xc5 $19) 31... Qa7+ 32. Qe3 Qxe3+ 33. Rxe3 c3) 31. Qe3 $1 $18 {[%emt 0:00:10]} Nd4 $2 {[%emt 0:00:10]} (31... Qd7 32. Re1 f6) 32. Ne5 $4 {[%emt 0:00:15][%mdl 8192] [#]} (32. Nxc5 Nxb3 33. Qxb3 Nxc5 $18) (32. Nxd4 $18 {and all is fine.} cxd4 33. Bxd4) 32... Nf5 $1 $19 {[%emt 0:00:10]} 33. Nc6 $2 {[%emt 0:00:26]} ({But not} 33. Qxe4 $2 c4+ 34. Bd4 Nxd4 $19) (33. Qf3 c4+ 34. Kh1 Nf2+ 35. Kg1 Rd1+ 36. Rxd1 Nxd1+ 37. Kh1 (37. Kf1 $2 c3 $19) 37... Nf2+ 38. Kg1 Nd1+ 39. Kh1 (39. Kf1 $2 c3 $19) 39... Nf2+ 40. Kg1 Ne4+ 41. Kh1) 33... Nxe3 {[%emt 0:00:09]} 34. Nxa7 {[%emt 0:00:02] [#]} Rd2 $1 {[%emt 0:00:01]} 35. Bf3 {[%emt 0:00:09]} Ng5 {[%emt 0:00:07]} 36. Bc6 {[%emt 0:00:02]} Nh3+ {[%emt 0:00:07]} 37. Kh1 {[%emt 0:00:01]} Nf2+ {[%emt 0:00:06]} 38. Kg1 {[%emt 0:00:01]} Nh3+ {[%emt 0:00:04]} 39. Kh1 {[%emt 0:00:00]} Nf2+ {[%emt 0:00:07]} 40. Kg1 {[%emt 0:00:01][%mdl 32768] Weighted Error Value: White=0.88/Black=0.60. An unexpected result.} 1/2-1/2

[Event "German-ch Blitz Women 2022"]
[Site "Magdeburg"]
[Date "2022.08.13"]
[Round "6.10"]
[White "Kunze, Kerstin"]
[Black "Kosovska, Olena"]
[Result "0-1"]
[ECO "B30"]
[WhiteElo "2020"]
[BlackElo "1831"]
[Annotator "TA"]
[PlyCount "63"]
[EventDate "2022.08.10"]
[EventType "tourn"]
[EventCountry "GER"]
[SourceTitle "playchess.com"]
[Source "ChessBase"]
[SourceQuality "1"]
[TimeControl "180+2"]

{[%evp 12,63,17,21,21,0,0,0,0,0,11,0,0,0,6,-20,0,0,39,43,38,32,45,41,129,138,135,92,97,109,94,20,56,40,52,30,23,32,43,63,33,-453,-451,-541,-453,-456,-449,-504,-499,-493,-452,-475,-479,-455]} 1. e4 {[%emt 0:00:01]} c5 {[%emt 0:00:00]} 2. Nf3 {[%emt 0:00:02]} Nc6 {[%emt 0:00:01]} 3. Bb5 {[%emt 0:00:02]} d6 {[%emt 0:00:03]} 4. d4 {[%emt 0:00:05]} cxd4 {[%emt 0:00:02]} 5. Qxd4 {[%emt 0:00:02]} Bd7 {[%emt 0:00:06]} 6. Bxc6 {[%emt 0:00:02]} bxc6 {[%emt 0:00:01]} 7. c4 {[%emt 0:00:08]} e5 {[%emt 0:00:02] B53: Sicilian: 2...d6: Lines with Qxd4.} 8. Qd2 {[%emt 0:00:11]} Nf6 {[%emt 0:00:02]} 9. Nc3 {[%emt 0:00:01]} Bg4 {[%emt 0:00:06] [#] The position is equal.} 10. Qe3 $146 {[%emt 0:00:27]} ({Predecessor:} 10. b3 Be7 11. Bb2 O-O 12. h3 Bxf3 13. gxf3 Nh5 14. Ne2 Bg5 15. Qd3 Qc7 16. Rg1 {0-1 (30) Kiracoglu,N-Celik,E Kemer 2012}) 10... Be7 {[%emt 0:00:02]} 11. O-O {[%emt 0:00:02]} O-O {[%emt 0:00:06]} 12. b3 {[%emt 0:00:08]} Qb6 {[%emt 0:00:14]} 13. Qd3 {[%emt 0:00:23]} Rfd8 {[%emt 0:00:10]} 14. h3 {[%emt 0:00:08]} Bh5 {[%emt 0:00:02][%cal Od6d5]} 15. Nh4 {[%emt 0:00:26]} d5 {[%emt 0:00:16]} 16. Nf5 {[%emt 0:00:09]} Bb4 {[%emt 0:00:21]} 17. cxd5 {[%emt 0:00:11]} ({But not} 17. exd5 Bg6 18. Bb2 (18. Be3 Qa6 $17) 18... cxd5 19. Nxd5 {[#]} Rxd5 $1 20. cxd5 e4 21. Nh6+ gxh6 $15) (17. Bg5 {is interesting.} dxe4 18. Qg3 Rd3 19. Be3) 17... Bxc3 {[%emt 0:00:05]} (17... cxd5 $14 18. Nxd5 Nxd5 19. exd5 Qb7) 18. Qxc3 $16 {[%emt 0:00:01] [#] And now Ne7+ would win.} cxd5 {[%emt 0:00:01]} 19. Qxe5 {[%emt 0:00:14] aiming for exd5.} ({Don't take} 19. Qg3 Bg6 $16) 19... dxe4 {[%emt 0:00:04]} 20. Bg5 {[%emt 0:00:12]} Re8 {[%emt 0:00:17][%cal Bd8e8,Be8e6,Be6d6][%mdl 32]} 21. Qf4 {[%emt 0:00:29]} ({Better is} 21. Ne7+ $16 Kf8 22. Bxf6 Qxf6 23. Qxh5 Rxe7 24. Qxh7) 21... Bg6 {[%emt 0:00:05]} 22. Rad1 {[%emt 0:00:04] Against Nd5. Black must now prevent Rd6.} Nh5 {[%emt 0:00:13]} 23. Qg4 {[%emt 0:00:03]} Nf6 {[%emt 0:00:05]} 24. Bxf6 {[%emt 0:00:05]} Qxf6 {[%emt 0:00:04]} 25. Nd6 {[%emt 0:00:03]} Re6 {[%emt 0:00:08]} 26. Rfe1 $2 {[%emt 0:00:06][%mdl 8192] This move loses the game for White.} Rxd6 $19 {[%emt 0:00:09] Black is clearly winning.} 27. Qg3 {[%emt 0:00:06]} Re6 {[%emt 0:00:03]} 28. Qe3 {[%emt 0:00:03]} h6 {[%emt 0:00:02]} 29. Rd7 {[%emt 0:00:01]} Ra6 {[%emt 0:00:04]} 30. a4 {[%emt 0:00:03]} Bf5 {[%emt 0:00:03]} 31. Rc7 {[%emt 0:00:02]} Rb6 {[%emt 0:00:04]} 32. Rec1 {Weighted Error Value: White=0.48/Black=0.13 (very precise)} 0-1

[Event "German-ch Blitz Women 2022"]
[Site "Magdeburg"]
[Date "2022.08.13"]
[Round "6.11"]
[White "Doll, Rebecca"]
[Black "Falke, Ornella"]
[Result "0-1"]
[ECO "B92"]
[WhiteElo "1933"]
[BlackElo "1912"]
[Annotator "TA"]
[PlyCount "138"]
[EventDate "2022.08.10"]
[EventType "tourn"]
[EventCountry "GER"]
[SourceTitle "playchess.com"]
[Source "ChessBase"]
[SourceQuality "1"]
[TimeControl "180+2"]

{[%evp 14,138,0,0,0,0,6,-1,0,-2,0,-7,32,24,31,31,31,32,54,55,48,31,208,53,245,221,248,227,283,242,228,222,349,251,314,314,364,368,514,510,494,366,359,75,102,14,140,35,37,-57,-51,-51,0,0,0,-54,-55,-52,-57,-120,-102,-122,-125,-128,-83,-81,-44,-385,-350,-354,-351,-494,-63,-63,-25,-41,-41,-41,-41,-50,-50,-231,-77,-253,231,-635,42,-635,-33,-61,-41,-62,-62,-62,-62,-1779,-37,-57,0,-62,-62,-29962,-29962,-29972,-29973,-29966,-6087,-5911,-5583,-5199,-2647,-4922,-4906,-1822,-1223,-1898,-1407,-1210,-1187,-29969,-29970,-29973,-29974,-29976,-29977,-29979,-6333]} 1. e4 {[%emt 0:00:02]} c5 {[%emt 0:00:01]} 2. Nf3 {[%emt 0:00:02]} d6 {[%emt 0:00:01]} 3. d4 {[%emt 0:00:01]} cxd4 {[%emt 0:00:01]} 4. Nxd4 {[%emt 0:00:02]} Nf6 {[%emt 0:00:00]} 5. Nc3 {[%emt 0:00:01]} a6 {[%emt 0:00:01]} 6. Be2 {[%emt 0:00:04]} e5 {[%emt 0:00:01]} 7. Nf3 {[%emt 0:00:05]} Be7 {[%emt 0:00:02]} 8. Bg5 {[%emt 0:00:03]} Be6 {[%emt 0:00:06] B92: Sicilian Najdorf: 6 Be2.} 9. Bxf6 {[%emt 0:00:09]} Bxf6 {[%emt 0:00:03]} 10. Nd5 {[%emt 0:00:04]} Nd7 {[%emt 0:00:31] The position is equal.} 11. Bc4 {[%emt 0:00:26]} Rc8 {[%emt 0:00:25]} 12. Qe2 {[%emt 0:00:19] [#]} Bxd5 $146 {[%emt 0:00:10]} ({Predecessor:} 12... Nb6 13. Nxb6 {½-½ (13) Fedorchuk,S (2636)-Di Nicolantonio,L (2408) Paris 2019}) 13. Bxd5 {[%emt 0:00:05]} Qc7 {[%emt 0:00:05]} 14. c3 {[%emt 0:00:07]} O-O {[%emt 0:00:04]} 15. O-O {[%emt 0:00:10]} Kh8 {[%emt 0:00:02]} 16. Rfd1 {[%emt 0:00:15]} Bd8 {[%emt 0:00:21]} 17. Qc2 {[%emt 0:00:33]} Qc5 $2 {[%emt 0:00:13]} (17... g6 $14) 18. Rd2 $2 {[%emt 0:00:08]} (18. Bxb7 $18 Rb8 19. Bxa6) 18... Bb6 $2 {[%emt 0:00:09]} (18... Qc7 $14) 19. Bxb7 {[%emt 0:00:08][%cal Bd5b7,Bb7a6,Ba6f1][%mdl 32]} Rc7 {[%emt 0:00:16]} 20. Bxa6 {[%emt 0:00:13] Threatens to win with Rd5.} Ra8 {[%emt 0:00:08]} 21. Bf1 {[%emt 0:00:09]} Nf6 {[%emt 0:00:06]} 22. a4 {[%emt 0:00:06][%cal Ba2a4,Ba4a5][%mdl 32]} Ba5 {[%emt 0:00:10]} (22... Qc6 {might work better.} 23. Bd3 Rca7) 23. Qd3 {[%emt 0:00:04]} Qc6 {[%emt 0:00:27]} 24. b4 {[%emt 0:00:13][%cal Bb2b4,Bb4b5][%mdl 32]} ({But not} 24. Qxd6 Qxd6 25. Rxd6 Nxe4) 24... Bb6 {[%emt 0:00:03]} 25. a5 {[%emt 0:00:02]} Ba7 {[%emt 0:00:05]} 26. b5 {[%emt 0:00:02]} Qxc3 {[%emt 0:00:03]} 27. Qxc3 {[%emt 0:00:15]} Rxc3 {[%emt 0:00:01]} 28. Rxd6 $2 {[%emt 0:00:03]} (28. Rb2 $18) 28... Nxe4 $16 {[%emt 0:00:01] [#]} 29. Rd7 {[%emt 0:00:01]} (29. Rd5 $1 $16 {And now b6 would win.} Bxf2+ 30. Kh1) 29... Bxf2+ $11 {[%emt 0:00:02]} 30. Kh1 {[%emt 0:00:01]} Bc5 $1 {[%emt 0:00:06]} 31. Nxe5 {[%emt 0:00:02]} (31. h3 $14 Ra3 32. Re1 Ng3+ 33. Kh2 Nxf1+ 34. Rxf1) 31... Nf2+ $15 {[%emt 0:00:01]} 32. Kg1 {[%emt 0:00:01]} Nh3+ {[%mdl 64] [#] Discovered Attack (Double check)} 33. Kh1 Nf2+ {[%emt 0:00:08][%cal Bh3f2,Bf2d3,Bd3e5,Be5c6][%mdl 32]} 34. Kg1 {[%emt 0:00:02]} Nd3+ {[%emt 0:00:08]} 35. Kh1 {[%emt 0:00:02]} Nxe5 {[%emt 0:00:01]} 36. Rc7 {[%emt 0:00:02]} (36. Rd5 $15 f6 37. b6) 36... Bd4 $17 {[%emt 0:00:02]} 37. Rxc3 {[%emt 0:00:03]} Bxc3 {[%emt 0:00:01]} 38. Ra3 {[%emt 0:00:01]} Bxa5 {[%emt 0:00:04] Hoping for ...Ra7.} 39. b6 {[%emt 0:00:01] Against Ra7} Nc6 {[%emt 0:00:03] White must now prevent ...Rb8.} 40. Be2 $2 {[%emt 0:00:01][%mdl 8192]} (40. g4 $15) 40... Rb8 {[%emt 0:00:02]} 41. Bf3 {[%emt 0:00:02]} Rxb6 {[%emt 0:00:02] ( -> ...Rb1+)} 42. h4 {[%emt 0:00:04]} (42. g4 $142 Bb4 43. Ra8+ Nb8 44. Ra7) 42... Nd4 $2 {[%emt 0:00:02]} 43. Rxa5 $15 {[%emt 0:00:02][%mdl 4096] Endgame White wants to mate with Ra8+. KRB-KRN} h6 {[%emt 0:00:03]} 44. Ra8+ {[%emt 0:00:02]} Kh7 {[%emt 0:00:00]} 45. Be4+ {[%emt 0:00:01]} g6 {[%emt 0:00:01]} 46. Ra7 {[%emt 0:00:01]} Kg7 {[%emt 0:00:00]} 47. Bf3 $2 {[%emt 0:00:02]} (47. Bd5 $15) 47... Rf6 $2 {[%emt 0:00:02]} (47... Nxf3 $19 {and Black stays clearly on top.} 48. gxf3 Rb4) 48. Kh2 $2 {[%emt 0:00:01]} (48. Bd5 $17) 48... Ne2 $4 {[%emt 0:00:02][%mdl 8192]} 49. g3 $4 {[%emt 0:00:03][%mdl 8192]} Nf4 $2 {[%emt 0:00:00]} (49... Rxf3 $19 50. Kg2 Rc3) 50. Bd5 $2 {[%emt 0:00:02][%mdl 8192]} Ne6 $2 {[%emt 0:00:01]} ({Black should try} 50... Nxd5 $19 51. Ra3 Rf2+ 52. Kg1 Re2) 51. Kg2 {[%emt 0:00:02]} Nd4 {[%emt 0:00:01]} 52. Bc4 {[%emt 0:00:02]} h5 {[%emt 0:00:01]} 53. Bd5 {[%emt 0:00:03]} Nf5 {[%emt 0:00:01]} 54. Bc4 $2 {[%mdl 8192]} (54. Ba2 $15) 54... Nd6 $2 (54... Ne3+ $19 55. Kh3 Nxc4) 55. Bb3 {[%emt 0:00:04]} Nf5 {[%emt 0:00:03]} 56. Bc4 $1 {[%emt 0:00:02]} Ne3+ {[%emt 0:00:01]} 57. Kh2 $2 {[%emt 0:00:01][%mdl 8192]} (57. Kg1 $15) 57... Nxc4 {[%emt 0:00:00] KRN-KR} 58. Kg2 {[%emt 0:00:02]} Ne3+ {[%emt 0:00:01]} 59. Kg1 {[%emt 0:00:02]} Ng4 {[%emt 0:00:01]} (59... Rf1+ $142 60. Kh2 Rf2+ 61. Kg1 Rg2+ 62. Kh1 Rxg3 63. Kh2 Nf5 64. Kh1 Nxh4 65. Kh2 Rg4 66. Kh1 g5 67. Kh2 Rg2+ 68. Kh3 Rg1 69. Rc7 Rg4 70. Kh2 Nf3+ 71. Kh3 Ng1+ 72. Kh2 h4 73. Rc3 Ne2 74. Re3 Nf4 75. Kh1 Rg3 76. Re7 Nh3 77. Rb7 Ng1 78. Rb4 Nf3 79. Rg4 Rg1+ 80. Rxg1 Nxg1 81. Kxg1 g4 82. Kg2 f5 83. Kh2 f4 84. Kg2 h3+ 85. Kf2 h2 86. Kg2 g3 87. Kh1 Kf6 88. Kg2 Kf5 89. Kh1 Kg4 90. Kg2 f3+ 91. Kh1 f2 92. Kg2 h1=Q+ 93. Kxh1 f1=Q#) 60. Kg2 {[%emt 0:00:01]} Rf2+ {[%emt 0:00:01]} 61. Kg1 {[%emt 0:00:01]} Kh6 {[%emt 0:00:02]} 62. Ra4 {[%emt 0:00:02]} Rf3 {[%emt 0:00:02]} 63. Kg2 {[%emt 0:00:01]} Re3 {[%emt 0:00:01]} 64. Rf4 {[%emt 0:00:04]} f6 {[%emt 0:00:02][%cal Bf7f6,Bf6f5][%mdl 32]} 65. Ra4 {[%emt 0:00:02]} g5 {[%emt 0:00:01] aiming for ...Rc3.} 66. hxg5+ {[%emt 0:00:02]} Kxg5 {[%emt 0:00:01] Black mates.} 67. Ra5+ {[%emt 0:00:02]} f5 {[%emt 0:00:00]} 68. Rb5 {[%emt 0:00:03]} Nf6 {[%emt 0:00:01]} 69. Rc5 {[%emt 0:00:01]} Ne4 {[%emt 0:00:01] Both players deserved the win here.  Weighted Error Value: White=0.98/Black=1.05} 0-1